{"text_format":"1","workbook":"xlsx","n_sheets":3,"sheets":["Production","Uses","Conversions"],"not_rendered":{"charts":0,"images":0,"macros":1,"external_links":1,"defined_names":220,"comments":0,"pivot_tables":0},"unopened":[],"bounds":{"document_bytes":16777216,"sheet_cells":100000,"rows_first":2000,"rows_last":500,"rows_between":2000,"halvings":0,"cell_chars":16384,"cell_head_chars":4096},"cells_cut":0,"cells_raw":0,"read":"whole","date_system":"1900"}

{"sheet":"Production","index":0,"n_rows":49,"n_cols":10,"rows_kept":49,"cut":false,"hidden":false,"merged":[]}
["Food waste pickup and digestion"]
[""]
[null,null,"Pickup truck bed",null,null,null,"e.g., my old beater blue 1997 Ford F-150"]
[null,{"$f":"retcellname(B4,3)","v":"PUbedW"},null,"width",64,"in"]
[null,{"$f":"retcellname(B5,3)","v":"PUbedH"},null,"height",19,"in","Cells in light yellow vary per situation"]
[null,"PUbedL",null,"length",80,"in","Cells in light green should hold in many or all situations"]
[]
[null,null,"How full?"]
[null,{"$f":"retcellname(B9,3)","v":"PUbedWpct"},null,"% width",1,null,null,{"$f":"CONCATENATE(\"\",TEXT(ROUND(PUloadAvgCuFt*PUloadNumTimesPerWk,-1),\"#,###\"),\" cu ft (\",TEXT(ROUND(FWwtWetLb,-1),\"#,###\"),\" lbs) of food waste [per month]…\")","v":"170 cu ft (10,540 lbs) of food waste [per month]…"}]
[null,"PUbedHpct",null,"% height",1,null,null,{"$f":"CONCATENATE(\"... may produce \",TEXT(ROUND(FWbiogasProdPerMoInCuFt,-2),\"#,###\"), \" cu ft of biogas per month.\")","v":"... may produce 21,000 cu ft of biogas per month."}]
[null,"PUbedLpct",null,"% length",0.75]
[]
[null,null,"How often?"]
[null,{"$f":"retcellname(B14,3)","v":"PUloadNumTimesPerWk"},null,null,4,"times/mo"]
[null,null,null,null,null,null,null,null,0,"(1 = show cell names in 2nd col, 0 = don't)"]
[null,null,"PU load vol"]
[null,{"$f":"retcellname(B17,3)","v":"PUloadAvgCuIn"},null,"Avg load",{"$f":"(PUbedW*PUbedWpct)*(PUbedH*PUbedHpct)*(PUbedL*PUbedLpct)","v":72960},"cu in/visit"]
[null,"PUloadAvgCuFt",null,null,{"$f":"PUloadAvgCuIn*cnv_inCuToFtCu","v":42.222222222222243},"cu ft/visit"]
[null,"PUloadAvgL",null,null,{"$f":"PUloadAvgCuFt*cnv_ftCuToL","v":1195.6003333333338},"liters/visit"]
[null,"PUloadAvgCuM",null,null,{"$f":"PUloadAvgCuFt*cnv_ftCuToMCu","v":1.195600333333334},"cu m/visit"]
[null,"PUloadAvgCuFtPerMo",null,"Per  month",{"$f":"PUloadAvgCuFt*PUloadNumTimesPerWk","v":168.88888888888897},"cu ft/mo"]
[null,"PUloadAvgCuMPerMo",null,null,{"$f":"PUloadAvgCuM*PUloadNumTimesPerWk","v":4.7824013333333362},"cu m/mo"]
[]
[null,null,"Density of food waste"]
[null,{"$f":"retcellname(B25,3)","v":"FWdensityKgPerLiter"},null,null,1,"kg/l","Anaerobic-Digestion-of-Canteen-Waste-in-Tanzania-Using-ARTI-Digesters.pdf, p. 16"]
[null,"FWdensityLbPerCuFt",null,null,{"$f":"FWdensityKgPerLiter*cnv_kgPerLToLbPerFtCu","v":62.427960575627154},"lb/ft3"]
[]
[null,null,"Wet weight of food waste, per mo"]
[null,{"$f":"retcellname(B29,3)","v":"FWwtWetKg"},null,null,{"$f":"FWdensityKgPerLiter*PUloadAvgL*PUloadNumTimesPerWk","v":4782.4013333333351},"kg, wet food"]
[null,{"$f":"retcellname(B30,3)","v":"FWwtWetLb"},null,null,{"$f":"FWdensityLbPerCuFt*PUloadAvgCuFt*PUloadNumTimesPerWk","v":10543.388897217035},"lb, wet food"]
[]
[null,null,"Dry weight of food waste, per mo (%H2O/TS)"]
[null,{"$f":"retcellname(B33,3)","v":"FWpctH2O"},null,"%H2O",0.78,null,"Est. (Anaerobic-Digestion-of-Canteen-Waste-in-Tanzania-Using-ARTI-Digesters.pdf, p. 16, says 73%)"]
[null,null,null,"(\\%TS)",{"$f":"1-FWpctH2O","v":0.21999999999999997}]
[null,"FWwtDryKg",null,"TS",{"$f":"FWwtWetKg*(1-FWpctH2O)","v":1052.1282933333337},"kg, dry food (TS)/mo"]
[null,"FWwtDryLb",null,"TS",{"$f":"FWwtWetLb*(1-FWpctH2O)","v":2319.5455573877475},"lb, dry food (TS)/mo"]
[]
[null,null,"%VS, of TS"]
[null,{"$f":"retcellname(B39,3)","v":"FWpctVSofTS"},null,"%VS",0.85,null,"Est. (conservative) based on several sources"]
[null,"FWwtVSkg",null,"VS",{"$f":"FWwtDryKg*FWpctVSofTS","v":894.30904933333363},"kg VS/mo"]
[null,"FWwtVSLb",null,"VS",{"$f":"FWwtDryLb*FWpctVSofTS","v":1971.6137237795854},"lb VS/mo"]
[]
[null,null,"Biogas production, per VS wt"]
[null,{"$f":"retcellname(B44,3)","v":"FWbiogasProdPerKgVSliters"},null,null,{"$f":"(550+780)/2","v":665},"l/kg VS","Train the Trainers Seminar, Wolpertshausen, Germany, 28-29 November 2007"]
[null,"FWbiogasProdPerLbVScuFt",null,null,{"$f":"FWbiogasProdPerKgVSliters*cnv_lPerKgToFtCuPerLb","v":10.652277559460352},"ft3/lb VS"]
[]
[null,null,"Biogas production, per month"]
[null,{"$f":"retcellname(B48,3)","v":"FWbiogasProdPerMoInL"},null,null,{"$f":"FWbiogasProdPerKgVSliters*FWwtVSkg","v":594715.5178066669},"l/mo",{"$f":"E48/1000","v":594.71551780666687},"m3/mo",{"$f":"(FWbiogasProdPerMoInL/1000)/(365.25/12)","v":19.538908182559897},"m3/da"]
[null,"FWbiogasProdPerMoInCuFt",null,null,{"$f":"FWbiogasProdPerLbVScuFt*FWwtVSLb","v":21002.176625741336},"ft3/mo",null,null,{"$f":"FWbiogasProdPerMoInCuFt/(365.25/12)","v":690.00990967528003},"ft3/da"]

{"sheet":"Uses","index":1,"n_rows":24,"n_cols":14,"rows_kept":24,"cut":false,"hidden":false,"merged":[[3,11,3,13]]}
["Uses"]
["use",null,null,null,null,null,null,null,null,null,null,"(note that the calculation of how much pilot oil is used depends on "]
[null,"Numbers for all uses are rated for 1 hour use unless otherwise mentioned",null,null,null,null,null,null,null,null,null,"the percentage of methane as indicated in the 'Assumptions' worksheet)"]
[null,null,null,null,null,null,null,null,null,null,null,"Pilot oil"]
[null,null,null,"Use","Size","Unit","Factor","Biogas, m3",null,"Biogas, ft3",null,"liters",null,"gal"]
[null,"Gensets",null,null,null,null,"Pilot oil"]
[null,null,"genset01Hp","Fuel 1 HP engine",1,"HP",0,{"$f":"fct_cuMperHPperHr","v":0.45306960000000002},"m3/hr",{"$f":"use_engine1Hp_MCuPerHpPerHr*cnv_mCuToFtCu","v":16.000001925416782},"ft3/hr"]
[null,null,"genset02p5Hp",{"$f":"CONCATENATE(E8,\" HP genset\",)","v":"2.5 HP genset"},2.5,"HP",0.08,{"$f":"((1-G8)*E8)*use_engine1Hp_MCuPerHpPerHr","v":1.0420600800000002},"m3/hr",{"$f":"use_genset02p5Hp_MCuPerHr*cnv_mCuToFtCu","v":36.800004428458607},"ft3/hr"]
[null,null,"genset18Hp",{"$f":"CONCATENATE(E9,\" HP genset\")","v":"18 HP genset"},18,"HP",0.08,{"$f":"((1-G9)*E9)*use_engine1Hp_MCuPerHpPerHr","v":7.5028325760000012},"m3/hr",{"$f":"use_genset18Hp_MCuPerHr*cnv_mCuToFtCu","v":264.96003188490198},"ft3/hr"]
[null,null,"gensetKuboda",{"$f":"CONCATENATE(\"Kuboda genset @ \",E10,\" HP\")","v":"Kuboda genset @ 24 HP"},24,"HP",0.08,{"$f":"((1-G10)*E10)*use_engine1Hp_MCuPerHpPerHr","v":10.003776768000002},"m3/hr",{"$f":"use_gensetKuboda_MCuPerHr*cnv_mCuToFtCu","v":353.2800425132026},"ft3/hr"]
[]
[null,"Lights"]
[null,null,"light100WEquiv","100w equiv. light",null,null,null,7.0792099999999997E-2,"m3/hr",{"$f":"H13*cnv_mCuToFtCu","v":2.499999417979704},"ft3/hr"]
[]
[null,"Stove",null,"20-25 cu.ft./hr. per burner, or"]
[null,null,"stoveBurnerAvg","150-300 cu.ft/day",null,null,null,0.63712913000000004,"m3/hr",{"$f":"H16*cnv_mCuToFtCu","v":22.500002884190685},"ft3/hr"]
[]
[]
[]
[null,{"$f":"CONCATENATE(\"Based on production of \",TEXT(FWbiogasProdPerMoInCuFt, \"#,###\"),\" cu ft/mo, it might be used as follows:\")","v":"Based on production of 21,002 cu ft/mo, it might be used as follows:"}]
[]
[null,"Use","#","per","uses"]
[null,"Lights",4,"hrs/da"]
[null,"Stove",4,"hrs/da"]

{"sheet":"Conversions","index":2,"n_rows":229,"n_cols":6,"rows_kept":229,"cut":false,"hidden":false,"merged":[]}
["Conversions"]
["cnv"]
[]
[null,"Length/Distance"]
[null,null,"Conversion","cellName","conv#","Units"]
[null,null,"cm (to in)","cmToIn",0.39370078740157477,"in"]
[null,null,"m (to ft)","mToFt",3.2808398950000002,"ft"]
[null,null,"km (to mi)","kmToMi",0.62137119224000004,"mi"]
[null,null,"in (to cm)","inToCm",2.54,"cm"]
[null,null,"in (to ft)","inToFt",8.3333333333333329E-2,"ft"]
[null,null,"ft (to yd)","ftToYd",0.33333333333333331,"yd"]
[null,null,"ft (to m)","ftToM",0.30480000000000002,"m"]
[null,null,"ft (to mi)","ftToMi",1.893939E-4,"mi"]
[null,null,"mi (to km)","miToKm",1.6093440000000001,"km"]
[]
[null,"Area"]
[null,null,"Conversion","cellName","conv#","Units"]
[null,null,"cm2 (to in2)","cmSqToInSq",0.15500031000062001,"in2"]
[null,null,"m2 (to ft2)","mSqToFtSq",10.76391042,"ft2"]
[null,null,"m2 (to ha)","mSqToHa",1E-4,"ha"]
[null,null,"km2 (to ha)","kmSqToHa",100,"ha"]
[null,null,"km2 (to acre)","kmSqToAcre",247.10538147,"acre"]
[null,null,"km2 (to mi2)","kmSqToMiSq",0.38610215799999997,"mi2"]
[null,null,"ha (to acre)","haToAcre",2.4710538161371201,"acre"]
[null,null,"ha (to ft2)","haToFtSq",107639.1042,"ft2"]
[null,null,"in2 (to cm2)","inSqToCmSq",6.4516,"cm2"]
[null,null,"in2 (to ft2)","inSqToFtSq",6.9444440000000001E-3,"ft2"]
[null,null,"ft2 (to in2)","ftSqToInSq",144,"in2"]
[null,null,"ft2 (to m2)","ftSqToMSq",9.2903040000000006E-2,"m2"]
[null,null,"ft2 (to yd2)","ftSqToYdSq",0.1111111,"yd2"]
[null,null,"ft2 (to mi2)","ftSqToMiSq",3.5870064279155203E-8,"mi2"]
[null,null,"ft2 (to acre)","ftSqToAcre",2.2956841138659299E-5,"acre"]
[null,null,"ft2 (to ha)","ftSqToHa",9.2903040000000008E-6,"ha"]
[null,null,"mi2 (to ft2)","miSqToFtSq",27878400,"ft2"]
[null,null,"mi2 (to km2)","miSqToKmSq",2.5899881100000002,"km2"]
[null,null,"acre (to ft2)","acreToFtSq",43560,"ft2"]
[null,null,"acre (to ha)","acreToHa",0.40468564200000001,"ha"]
[null,null,"acre (to km2)","acreToKmSq",4.0468559999999997E-3,"km2"]
[null,null,"acre (to mi2)","acreToMiSq",1.5625000000000001E-3,"mi2"]
[]
[null,"Mass"]
[null,null,"Conversion","cellName","conv#","Units"]
[null,null,"gm (to oz)","gmToOz",3.5273961950000002E-2,"oz"]
[null,null,"gm (to lb)","gmToLb",2.2046226218000002E-3,"lb"]
[null,null,"kg (to oz)","kgToOz",35.27396195,"oz"]
[null,null,"kg (to lb)","kgToLb",2.2046226218,"lb"]
[null,null,"kg (to ton)","kgToTon",1.1023113109243901E-3,"ton"]
[null,null,"tonne (to lb)","tonneToLb",2204.6226218000002,"lb"]
[null,null,"tonne (to ton)","tonneToTon",1.1023113109,"ton"]
[null,null,"oz (to gm)","ozToGm",28.349523125000001,"gm"]
[null,null,"oz (to lb)","ozToLb",6.25E-2,"lb"]
[null,null,"oz (to kg)","ozToKg",2.8349523125000001E-2,"kg"]
[null,null,"lb (to gm)","lbToGm",453.59237000000002,"gm"]
[null,null,"lb (to oz)","lbToOz",16,"oz"]
[null,null,"lb (to kg)","lbToKg",0.45359237000000002,"kg"]
[null,null,"lb (to ton)","lbToTon",5.0000000000000001E-4,"ton"]
[null,null,"lb (to tonne)","lbToTonne",4.5359236999999999E-4,"tonne"]
[null,null,"ton (to lb)","tonToLb",2000,"lb"]
[null,null,"ton (to kg)","tonToKg",907.18470000000002,"kg"]
[null,null,"ton (to tonne)","tonToTonne",0.90718474000000004,"tonne"]
[]
[null,"Volume"]
[null,null,"Conversion","cellName","conv#","Units"]
[null,null,"cm3 (to ml)","cmCuToMl",1,"ml"]
[null,null,"cm3 (to m3)","cmCuToMCu",9.9999999999999995E-7,"m3"]
[null,null,"cm3 (to in3)","cmCuToInCu",6.1023744094999999E-2,"in3"]
[null,null,"cm3 (to fl oz)","cmCuToFlOz",3.3814022701E-2,"fl oz"]
[null,null,"l (to m3)","lToMCu",1E-3,"m3"]
[null,null,"l (to in3)","lToInCu",61.023744094732301,"in3"]
[null,null,"l (to fl oz)","lToFlOz",33.814022701271298,"fl oz"]
[null,null,"l (to ft3)","lToFtCu",3.5314666720999997E-2,"ft3"]
[null,null,"m3 (to cm3)","mCuToCmCu",1000000,"cm3"]
[null,null,"m3 (to in3)","mCuToInCu",61023.744094731999,"in3"]
[null,null,"m3 (to ft3)","mCuToFtCu",35.314666721000002,"ft3"]
[null,null,"m3 (to gal)","mCuToGal",264.17205235799997,"gal"]
[null,null,"m3 (to yd3)","mCuToYdCu",1.3079506190000001,"yd3"]
[null,null,"in3 (to cm3)","inCuToCmCu",16.387063999999999,"cm3"]
[null,null,"in3 (to fl oz)","inCuToFlOz",0.55411255410000004,"fl oz"]
[null,null,"in3 (to ft3)","inCuToFtCu",5.78703703703704E-4,"ft3"]
[null,null,"in3 (to gal)","inCuToGal",4.32900432886E-3,"gal"]
[null,null,"fl oz (to cm3)","flOzToCmCu",29.573529563000001,"cm3"]
[null,null,"fl oz (to in3)","flOzToInCu",1.8046875,"in3"]
[null,null,"fl oz (to ft3)","flOzToFtCu",1.044379E-3,"ft3"]
[null,null,"fl oz (to gal)","flOzToGal",7.8125E-3,"gal"]
[null,null,"ft3 (to cm3)","ftCuToCmCu",28316.846592000002,"cm3"]
[null,null,"ft3 (to l)","ftCuToL",28.316846592000001,"l"]
[null,null,"ft3 (to m3)","ftCuToMCu",2.8316846999999999E-2,"m3"]
[null,null,"ft3 (to in3)","ftCuToInCu",1728,"in3"]
[null,null,"ft3 (to gal)","ftCuToGal",7.4805194805194999,"gal"]
[null,null,"ft3 (to bu)","ftCuToBu",0.80356395488629395,"bu"]
[null,null,"ft3 (to yd3)","ftCuToYdCu",3.703704E-2,"yd3"]
[null,null,"ft3 (to l)","ftCuToL",28.316849999999999,"l"]
[null,null,"ft3 (to m3)","ftCuToMCu",2.8316850000000001E-2,"m3"]
[null,null,"gal (to fl oz)","galToFlOz",128,"fl oz"]
[null,null,"gal (to l)","galToL",0.26417205235380598,"l"]
[null,null,"gal (to ft3)","galToFtCu",0.133680555555556,"ft3"]
[null,null,"gal (to m3)","galToMCu",3.7854117840000001E-3,"m3"]
[null,null,"yd3 (to ft3)","ydCuToftCu",26.999997840000173,"ft3"]
[]
[null,"Energy units"]
[null,null,"Conversion","cellName","conv#","Units"]
[null,null,"kCal (to BTU)","kCalToBtu",3.9683205411000002,"BTU"]
[null,null,"kCal (to joules)","kCalToJoules",4186.8,"joules"]
[null,null,"joules (to kCal)","joulesToKcal",2.3884589662750001E-4,"kCal"]
[null,null,"joules (to KwH)","joulesToKwh",2.777778E-7,"KwH"]
[null,null,"joules (to BTU)","joulesToBtu",9.4781710000000003E-4,"BTU"]
[null,null,"joules (to therm)","joulesToTherm",9.4781340000000003E-9,"therm"]
[null,null,"kCal (to Kwh)","kCalToKwh",1.163E-3,"Kwh"]
[null,null,"kCal (to therm)","kCalToTherm",3.9692682242000001E-5,"therm"]
[null,null,"BTU (to kCal)","btuToKcal",0.25199577242999999,"kCal"]
[null,null,"BTU (to Kwh)","btuToKwh",2.9307108333000002E-4,"Kwh"]
[null,null,"BTU (to therm)","btuToTherm",1.0002388121E-5,"therm"]
[null,null,"Kwh (to kCal)","kwhToKcal",859.84522786000002,"kCal"]
[null,null,"Kwh (to BTU)","kwhToBtu",3412.1414798999999,"BTU"]
[null,null,"Kwh (to therm)","kwhToTherm",3.4121279999999997E-2,"therm"]
[null,null,"therm (to kCal)","thermToKcal",25193.5607148733,"kCal"]
[null,null,"therm (to BTU)","thermToBtu",99976.124491759998,"BTU"]
[null,null,"therm (to Kwh)","thermToKwh",29.300111111,"Kwh"]
[]
[null,"Power"]
[null,null,"Conversion","cellName","conv#","Units"]
[null,null,"kW (to kCal/sec)","kWToKcalPerSec",0.23884589663,"kCal/sec"]
[null,null,"kW (to BTU/sec)","kWToBtuPerSec",0.94781712087000003,"BTU/sec"]
[null,null,"kW (to HP)","kWToHp",1.3410220924,"HP"]
[null,null,"kCal/sec (to kW)","kCalPerSecToKw",4.1867999999999999,"kW"]
[null,null,"kCal/sec (to HP)","kCalPerSecToHp",5.6145912965999996,"HP"]
[null,null,"BTU/sec (to kW)","btuPerSecToKw",1.055055852,"kW"]
[null,null,"BTU/sec (to HP)","btuPerSecToHp",1.4148532063000001,"HP"]
[null,null,"HP (to kW)","hpToKw",0.74569987000000004,"kW"]
[null,null,"HP (to kCal/sec)","hpToKcalPerSec",0.17810735407,"kCal/sec"]
[null,null,"HP (to BTU/sec)","hpToBtuPerSec",0.70678710381999998,"BTU/sec"]
[]
[null,"Energy Density (chk*)"]
[null,null,"Conversion","cellName","conv#","Units"]
[null,null,"cal l-1 (to kCal m-3)","calPerLToKcalPerMCu",1E-3,"kCal m-3"]
[null,null,"cal l-1 (to joules m-3)","calPerLToJoulesPerMCu",4184,"joules m-3"]
[null,null,"kCal l-1 (to joules m-3)","kCalPerLToJoulesPerMCu",4184000,"joules m-3"]
[null,null,"kCal l-1 (to BTU ft-3)","kCalPerLToBtuPerFtCu",112.29517930599999,"BTU ft-3"]
[null,null,"kCal l-1 (to BTU gal-1)","kCalPerLToBtuPerGal",15.01168195,"BTU gal-1"]
[null,null,"kCal m-3 (to BTU ft-3)","kCalPerMCuToBtuPerFtCu",0.112295179305963,"BTU ft-3"]
[null,null,"kCal m-3 (to BTU gal-1)","kCalPerMCuToBtuPerGal",1.5011681949708399E-2,"BTU gal-1"]
[null,null,"joules l-1 (to kCal m-3)","joulesPerLToKcalPerMCu",0.239005736,"kCal m-3"]
[null,null,"joules l-1 (to BTU ft-3)","joulesPerLToBtuPerFtCu",2.68571599491551E-2,"BTU ft-3"]
[null,null,"joules l-1 (to BTU gal-1)","joulesPerLToBtuPerGal",3.5878773723644502E-3,"BTU gal-1"]
[null,null,"joules l-1 (to therm ft-3)","joulesPerLToThermPerFtCu",3.3471714335160999E-10,"therm ft-3"]
[null,null,"BTU ft-3 (to kCal l-1)","btuPerFtCuToKcalPerL",8.9051017699999999E-3,"kCal l-1"]
[null,null,"BTU ft-3 (to kCal m-3)","btuPerFtCuToKcalPerMCu",8.9051017699999999,"kCal m-3"]
[null,null,"BTU ft-3 (to joules m-3)","btuPerFtCuToJoulesPerMCu",37258.945807831296,"joules m-3"]
[null,null,"therm ft-3 (to kCal m-3)","thermPerFtCuToKcalPerMCu",889702.20017333794,"kCal m-3"]
[null,null,"therm ft-3 (to joules m-3)","thermPerFtCuToJoulesPerMCu",3725005171.64923,"joules m-3"]
[null,null,"therm ft-3 (to BTU gal-1)","thermPerFtCuToBtuPerGal",13368.055555590399,"BTU gal-1"]
[]
[null,"Density"]
[null,null,"Conversion","cellName","conv#","Units"]
[null,null,"gm/cm3 (to kg/m3)","gmPerCmCuToKgPerMCu",1000,"kg/m3"]
[null,null,"kg/l (to lb/ft3)","kgPerLToLbPerFtCu",{"$f":"(cnv_kgToLb)/(cnv_lToFtCu)","v":62.427960575627154},"lb/ft3"]
[null,null,"kg/m3 (to lb/in3)","kgPerMCuToLbPerInCu",3.6127292E-5,"lb/in3"]
[null,null,"kg/m3 (to lb/ft3)","kgPerMCuToLbPerFtCu",{"$f":"0.000036127292/cnv_inCuToFtCu","v":6.2427960575999968E-2},"lb/ft3"]
[null,null,"kg/m3 (to lb/gal)","kgPerMCuToLbPerGal",8.3454044520000006E-3,"lb/gal"]
[null,null,"kg/m3 (to SpGrav (specific gravity))","kgPerMCuToSpGrav",1E-3,"SpGrav (specific gravity)"]
[null,null,"lb/ft3 (to kg/m3)","lbPerInCuToKgPerMCu",16.018463373960099,"kg/m3"]
[null,null,"lb/ft3 (to oz/in3)","lbPerFtCuToOzPerInCu",9.2592592592592605E-3,"oz/in3"]
[null,null,"lb/ft3 (to SpGrav)","lbPerFtCuToSpGrav",62.427183560000003,"SpGrav"]
[null,null,"SpGrav (to gm/cm3)","spGravToGmPerCmCu",1,"gm/cm3"]
[null,null,"SpGrav (to kg/m3)","spGravToKgPerMCu",1000,"kg/m3"]
[null,null,"SpGrav (to oz/in3)","spGravToOzPerInCu",0.57802947740739996,"oz/in3"]
[null,null,"SpGrav (to lb/ft3)","spGravToLbPerFtCu",1.6018662751920001E-2,"lb/ft3"]
[null,null,"SpGrav (to lb/gal)","spGravToLbPerGal",8.3453005800909992,"lb/gal"]
[]
[null,"Pressure"]
[null,null,"Conversion","cellName","conv#","Units"]
[null,null,"atm (to bar)","atmToBar",1.01325,"bar"]
[null,null,"atm (to mm Hg)","atmToMmHg",760.00210017851998,"mm Hg"]
[null,null,"atm (to cm H2O)","atmToCmH2o",1033.22755476679,"cm H2O"]
[null,null,"atm (to cm H2O)","atmToFtH2o",33.898542050866702,"cm H2O"]
[null,null,"atm (to MPascal)","atmToMpascal",0.10132500999999999,"MPascal"]
[null,null,"atm (to psi)","atmToPsi",14.6959502543,"psi"]
[null,null,"bar (to atm)","barToAtm",0.98692326671601005,"atm"]
[null,null,"bar (to mm Hg)","barToMmHg",750.06375541921,"mm Hg"]
[null,null,"bar (to cm H2O)","barToCmH2o",1019.716213,"cm H2O"]
[null,null,"bar (to psi)","barToPsi",14.503773773022001,"psi"]
[null,null,"MPascal (to atm)","mPascalToAtm",9.8692316930999997,"atm"]
[null,null,"MPascal (to psi)","mPascalToPsi",145.03773773021999,"psi"]
[null,null,"mm Hg (to atm)","mmHgToAtm",1.3157858376511E-3,"atm"]
[null,null,"mm Hg (to cm H2O)","mmHgToCmH2o",1.3595060468770099,"cm H2O"]
[null,null,"cm H2O (to atm)","cmH2oToAtm",9.6784100984000001E-4,"atm"]
[null,null,"cm H2O (to bar)","cmH2oToBar",9.8066499999999992E-4,"bar"]
[null,null,"psi (to atm)","psiToAtm",6.8045957064000004E-2,"atm"]
[null,null,"psi (to bar)","psiToBar",6.8947572799999995E-2,"bar"]
[null,null,"bar (to mm Hg)","barToMmHg",51.714924101999998,"mm Hg"]
[null,null,"psi (to cm H2O)","psiToCmH2o",70.306957830000002,"cm H2O"]
[null,null,"psi (to MPascal)","psiToMpascal",6.8947572931679999E-3,"MPascal"]
[]
[null,"Heat Transfer Coefficient"]
[null,null,"Conversion","cellName","conv#","Units"]
[null,null,"kCal hr-1 m-2 ºC (to BTU hr-1 ft-2 ºF)","kCalPerHrPerMSqDegCToBtuPerHrPerFtSqDegF",0.20467916890085799,"BTU hr-1 ft-2 ºF"]
[null,null,"BTU hr-1 ft-2 ºF (to kCal hr-1 m-2 ºC)","btuPerHrPerFtSqDegFToKcalPerHrPerMSqDegC",4.885695041,"kCal hr-1 m-2 ºC"]
[]
[null,"Gas Production (chk*)"]
[null,null,"Conversion","cellName","conv#","Units"]
[null,null,"l gm-1 (to ft3 lb-1)","lPerGmToFtCuPerLb",16.018462495429102,"ft3 lb-1"]
[null,null,"l gm-1 (to m3 kg-1)","lPerGmToMCuPerKg",1,"m3 kg-1"]
[null,null,"l gm-1 (to m3 t-1)","lPerGmToMCuPerTonne",1000,"m3 t-1"]
[null,null,"l kg-1 (to ft3 lb-1)","lPerKgToFtCuPerLb",1.6018462495429101E-2,"ft3 lb-1"]
[null,null,"l kg-1 (to m3 t-1)","lPerKgToMCuPerTonne",1,"m3 t-1"]
[null,null,"m3 kg-1 (to ft3 lb-1)","mCuPerKgTo",16.018462495429102,"ft3 lb-1"]
[null,null,"m3 kg-1 (to m3 t-1)","mCuPerKgToMCuPerTonne",1E-3,"m3 t-1"]
[null,null,"ft3 lb-1 (to yd3 ton-1)","ftCuPerLbToYdCuPerTon",74.074079999999995,"yd3 ton-1"]
[null,null,"ft3 lb-1 (to l gm-1)","ftCuPerLbToLPerGm",6.2427960576144997E-2,"l gm-1"]
[null,null,"ft3 lb-1 (to l kg-1)","ftCuPerLbToLPerKg",62.427960576144997,"l kg-1"]
[null,null,"ft3 lb-1 (to m3 kg-1)","ftCuPerLbToMCuPerKg",6.2427960576144997E-2,"m3 kg-1"]
[null,null,"ft3 lb-1 (to m3 t-1)","ftCuPerLbToMCuPerTonne",62.427960576144997,"m3 t-1"]
[null,null,"yd3 ton-1 (to ft3 lb-1)","ydCuPerLbToFtCuPerLb",1.35E-2,"ft3 lb-1"]
[null,null,"yd3 ton-1 (to m3 t-1)","ydCuPerLbToMCuPerTonne",0.84277746799999997,"m3 t-1"]
[]
[null,"Flow Rate"]
[null,null,"Conversion","cellName","conv#","Units"]
[null,null,"l/sec (to m3/hr)","lPerSecToMCuPerHr",3.6,"m3/hr"]
[null,null,"l/sec (to ft3/sec)","lPerSecToFtCuPerSec",3.5314666720999997E-2,"ft3/sec"]
[null,null,"l/sec (to gal/sec)","lPerSecToGalPerSec",0.26417205235448998,"gal/sec"]
[null,null,"m3/hr (to l/sec)","mCuPerHrToLPerSec",0.27777777777777801,"l/sec"]
[null,null,"m3/hr (to ft3/sec)","mCuPerHrToFtCuPerSec",9.8096296399999994E-3,"ft3/sec"]
[null,null,"m3/hr (to gal/sec)","mCuPerHrToGalPerSec",7.3381125699999994E-2,"gal/sec"]
[null,null,"ft3/sec (to l/sec)","ftCuPerSecToLPerSec",28.316846600000002,"l/sec"]
[null,null,"ft3/sec (to m3/hr)","ftCuPerSecToMCuPerHr",101.940648,"m3/hr"]
[null,null,"ft3/sec (to gal/sec)","ftCuPerSecToGalPerSec",7.480519481,"gal/sec"]
[null,null,"gal/sec (to l/sec)","galPerSecToLPerSec",3.78541178,"l/sec"]
[null,null,"gal/sec (to m3/hr)","galPerSecToMCuPerHr",13.6274824,"m3/hr"]
[null,null,"gal sec-1 (to ft3 sec-1)","galPerSecToFtCuPerSec",0.13368055600000001,"ft3 sec-1"]